fUSD/lending_fUSD_20250629
["ID","MTS","AMOUNT","RATE_DAILY","PERIOD"]
[368589313,1751218232464,-304.02,0.0002001,2]
[368589314,1751218232474,-305.26,0.0002001,2]
[368589315,1751218232483,-301.5,0.0002001,2]
[368589316,1751218232492,-302.51,0.0002001,2]
[368589317,1751218232501,-303.84,0.0002001,2]
[368589318,1751218232510,-303.37,0.0002001,2]
[368589319,1751218232519,-303.72,0.0002001,2]
[368589320,1751218232528,-304.5,0.0002001,2]
[368589321,1751218232537,-304.79,0.0002013,2]
[368589322,1751218232547,-302.38,0.00020131,2]
[368589323,1751218232556,-302.72,0.00020131,2]
[368589324,1751218232566,-302.51,0.00020131,2]
[368589325,1751218232575,-302.01,0.00020133,2]
[368589326,1751218232584,-302.84,0.00020133,2]
[368589327,1751218232595,-305.75,0.00020137,2]
[368589328,1751218232605,-250.0,0.00020151,2]
[368589329,1751218232614,-300.98,0.00020171,2]
[368589330,1751218232623,-822.89,0.00020629,2]
[368589331,1751218232636,-305.44,0.00020649,2]
[368589333,1751218232645,-14452.33201532,0.000207,2]
[368589670,1751218238884,-923.17571784,0.000207,2]
[368589672,1751218238895,-1701.59615052,0.000207,2]
[368589680,1751218238959,-1928.94121041,0.000207,2]
[368589682,1751218238970,-311.54446569,0.000207,2]
[368589686,1751218239002,-637.0865167,0.000207,2]
[368589862,1751218240421,-925.51228013,0.000207,2]
[368590185,1751218242364,-7084.86302094,0.000207,2]
[368590188,1751218242380,-1449.75065777,0.000207,2]
[368590195,1751218242445,-2711.88152118,0.000207,2]
[368590199,1751218242468,-689.43203415,0.000207,2]
[368590313,1751218243526,-2397.58585682,0.000207,2]
[368590586,1751218246221,-1762.78001331,0.000207,2]
[368590620,1751218246538,-891.43203415,0.000207,2]
[368590784,1751218403730,500.0,0.00027397,120]
[368590812,1751218867353,150.0,0.00027397,120]
[368590813,1751218867551,456.61,0.00027397,120]
[368590814,1751218893800,150.0,0.00027397,120]
[368590815,1751218992176,309.12,0.00013699,2]
[368590817,1751218998359,500.0,0.00027397,120]
[368590819,1751219226956,158.02,0.000255,120]
[368590833,1751219431478,-309.12,0.00020187,2]
[368590834,1751219431488,-300.01,0.0002031,2]
[368590835,1751219431498,-304.02,0.0002031,2]
[368590836,1751219431508,-155.23352289,0.00020365,2]
[368590837,1751219431517,-45.00938127,0.000204,2]
[368590838,1751219431529,-113.01061873,0.000204,2]
[368590839,1751219431538,-2932.49,0.00020427,2]
[368590840,1751219431548,-168.11,0.00020465,2]
[368590841,1751219431557,-1200.0,0.00020659,2]
[368590842,1751219431567,-300.0,0.0002066,2]
[368590843,1751219431577,-250.0,0.00020661,2]
[368590844,1751219431586,-301.49,0.00020661,2]
[368590845,1751219431595,-304.85,0.00020661,2]
[368590846,1751219431605,-305.71,0.00020661,2]
[368590847,1751219431615,-300.61,0.00020661,2]
[368590848,1751219431624,-302.91,0.00020661,2]
[368590849,1751219431634,-301.1,0.00020661,2]
[368590850,1751219431643,-303.19,0.00020662,2]
[368590851,1751219431653,-304.9,0.00020662,2]
[368590852,1751219431663,-305.1,0.00020662,2]
[368590853,1751219431672,-302.59,0.00020662,2]
[368590854,1751219431682,-302.95,0.00020668,2]
[368590855,1751219431691,-304.26,0.00020668,2]
[368590856,1751219431701,-302.79,0.00020668,2]
[368590857,1751219431710,-304.07,0.00020668,2]
[368590858,1751219431719,-303.06,0.00020697,2]
[368590859,1751219431728,-303.57,0.00020697,2]
[368590860,1751219431738,-301.97,0.00020697,2]
[368590861,1751219431747,-300.63,0.00020697,2]
[368590862,1751219431757,-305.17,0.00020697,2]
[368590863,1751219431766,-305.07,0.00020697,2]
[368590864,1751219431775,-304.6,0.00020697,2]
[368590865,1751219431785,-301.59,0.00020697,2]
[368590866,1751219431794,-304.64,0.00020697,2]
[368590867,1751219431803,-302.35,0.00020697,2]
[368590868,1751219431812,-304.2,0.00020697,2]
[368590869,1751219431821,-300.3,0.00020697,2]
[368590870,1751219431831,-303.77,0.00020698,2]
[368590871,1751219431841,-305.39,0.00020698,2]
[368590872,1751219431850,-302.86,0.00020698,2]
[368590873,1751219431859,-301.02,0.00020698,2]
[368590874,1751219431868,-303.74,0.00020698,2]
[368590875,1751219431878,-302.96,0.00020698,2]
[368590876,1751219431887,-300.83,0.00020698,2]
[368590877,1751219431896,-304.45,0.00020698,2]
[368590878,1751219431906,-302.96,0.00020698,2]
[368590879,1751219431915,-302.77,0.00020698,2]
[368590880,1751219431924,-301.79,0.00020698,2]
[368590881,1751219431934,-302.01,0.00020698,2]
[368590882,1751219431944,-304.2,0.00020698,2]
[368590883,1751219431953,-300.09,0.00020698,2]
[368590884,1751219431963,-303.92,0.00020698,2]
[368590885,1751219431972,-301.64,0.000207,2]
[368590886,1751219431981,-301.98,0.000207,2]
[368590887,1751219431991,-301.64,0.000207,2]
[368590889,1751219432001,-304.99,0.000207,2]
[368590891,1751219432010,-304.73,0.000207,2]
[368590893,1751219432020,-305.15,0.000207,2]
[368590895,1751219432029,-303.59,0.000207,2]
[368590897,1751219432038,-303.63,0.000207,2]
[368590900,1751219432047,-300.42,0.000207,2]
[368590903,1751219432057,-305.95,0.000207,2]
[368590906,1751219432066,-305.04,0.000207,2]
[368590909,1751219432075,-303.37,0.000207,2]
[368590912,1751219432084,-302.97,0.000207,2]
[368590915,1751219432094,-173.09,0.00020751,2]
[368590917,1751219432104,-250.0,0.00020779,2]
[368590919,1751219432114,-200.0,0.00020785,7]
[368590921,1751219432125,-300.95,0.00020794,2]
[368590923,1751219432134,-924.62,0.000208,2]
[368590924,1751219432143,-1000.0,0.00020821,2]
[368590925,1751219432153,-207.4,0.00020835,2]
[368590926,1751219432163,-300.0,0.00020861,2]
[368590927,1751219432172,-151.0,0.00020861,2]
[368590928,1751219432181,-151.0,0.00020861,2]
[368590929,1751219432193,-151.0,0.00020861,2]
[368590930,1751219432203,-151.0,0.00020861,2]
[368590931,1751219432212,-151.0,0.00020861,2]
[368590932,1751219432221,-160.0,0.00020861,2]
[368590933,1751219432230,-151.0,0.00020861,2]
[368590934,1751219432240,-151.0,0.00020861,2]
[368590935,1751219432248,-151.0,0.00020861,2]
[368590936,1751219432258,-151.0,0.00020861,2]
[368590937,1751219432267,-151.0,0.00020861,2]
[368590938,1751219432276,-151.0,0.00020861,2]
[368590939,1751219432286,-151.0,0.00020861,2]
[368590940,1751219432295,-151.0,0.00020861,2]
[368590941,1751219432304,-151.0,0.00020861,2]
[368590942,1751219432314,-151.0,0.00020861,2]
[368590943,1751219432323,-151.0,0.00020861,2]
[368590944,1751219432333,-151.0,0.00020861,2]
[368590945,1751219432342,-151.0,0.00020861,2]
[368590946,1751219432352,-151.0,0.00020861,2]
[368590947,1751219432362,-151.0,0.00020861,2]
[368590948,1751219432371,-22654.73,0.00020874,2]
[368590949,1751219432381,-225.73,0.00020882,2]
[368590950,1751219432390,-160.0,0.00020902,2]
[368590951,1751219432400,-1195.08,0.00020941,2]
[368590952,1751219432409,-212.31,0.00020986,2]
[368590953,1751219432419,-287.23,0.00021041,2]
[368590954,1751219432428,-1475.25775651,0.000212,4]
[368590955,1751219432437,-1475.25775633,0.000212,4]
[368590956,1751219432446,-1475.25775633,0.00021245,4]
[368590957,1751219432455,-1581.0,0.00021394,2]
[368590958,1751219432465,-1475.25775633,0.00021417,5]
[368590959,1751219432475,-1581.0,0.00021538,2]
[368590960,1751219432484,-500.0,0.00021562,2]
[368590961,1751219432494,-1475.25775633,0.0002159,5]
[368590962,1751219432505,-2000.0,0.000216,2]
[368590963,1751219432515,-6778.5294,0.000217,2]
[368590964,1751219432524,-462.71,0.00021711,2]
[368590965,1751219432534,-1000.0,0.00021716,2]
[368590966,1751219432544,-1581.0,0.00021741,2]
[368590967,1751219432554,-1475.25775633,0.00021762,5]
[368590968,1751219432564,-212.31,0.00021773,2]
[368590969,1751219432574,-9425.90653829,0.000218,2]
[368590970,1751219432588,-38412.68443919,0.000218,2]
[368590971,1751219432637,-653.51,0.000218,2]
[368590972,1751219432666,-5603.34951379,0.000218,2]
[368590973,1751219432686,-6112.4101344,0.000218,2]
[368590974,1751219432710,-3893.31631357,0.000218,2]
[368590975,1751219432723,-4176.52957308,0.000218,2]
[368590976,1751219432734,-704.1835659,0.000218,2]
[368590977,1751219432745,-310.31,0.000218,2]
[368591138,1751219439533,-437.373602,0.00020873,3]
[368591140,1751219439545,-259.67820002,0.00020873,3]
[368591177,1751219439901,-268.693425,0.00020873,3]
[368591189,1751219440006,-537.1,0.00020873,3]
[368591469,1751219442627,-5265.23886629,0.00020873,3]
[368591472,1751219442639,-764.28708988,0.00020873,3]
[368591763,1751219445467,-5541.14580472,0.00020873,3]
[368592063,1751219599467,513.374193,0.00027397,120]
[368592064,1751219787067,250.0,0.00015,2]
[368592065,1751219800336,3626.0,0.00027397,120]
[368592069,1751219956802,286.08,0.00013699,2]
[368592070,1751220453255,150.0,0.000152,2]
[368592079,1751220599095,231.23966071,0.00015124,2]
[368592081,1751220631928,-513.0,0.00015255,2]
[368592083,1751220631938,-250.0,0.00016751,2]
[368592085,1751220631948,-513.0,0.00017385,4]
[368592087,1751220631957,-164.13,0.00019178,2]
[368592089,1751220631967,-1000.0,0.00019287,2]
[368592091,1751220631976,-513.0,0.00019516,7]
[368592093,1751220631986,-1000.0,0.00019564,2]
[368592095,1751220631995,-251.0,0.00019749,2]
[368592097,1751220632006,-1000.0,0.00019789,2]
[368592099,1751220632015,-1153.0,0.00019905,2]
[368592100,1751220632025,-1057.96372063,0.0002,2]
[368592101,1751220632034,-1492.0,0.00020004,2]
[368592102,1751220632043,-807.0,0.00020103,2]
[368592103,1751220632052,-1000.0,0.00020174,2]
[368592104,1751220632062,-286.08,0.00020187,2]
[368592105,1751220632071,-300.0,0.00020194,2]
[368592106,1751220632081,-248.0,0.00020202,2]
[368592107,1751220632090,-150.0,0.00020255,2]
[368592109,1751220632099,-1200.0,0.00020256,2]
[368592111,1751220632108,-1045.0,0.00020257,2]
[368592113,1751220632117,-394.57031669,0.00020276,2]
[368592115,1751220632126,-150.0,0.00020298,2]
[368592116,1751220632135,-150.0,0.00020319,2]
[368592117,1751220632144,-150.0,0.00020329,2]
[368592118,1751220632153,-600.0,0.00020331,2]
[368592119,1751220632162,-1045.0,0.00020332,2]
[368592120,1751220632171,-500.0,0.0002035,2]
[368592121,1751220632180,-983.12,0.00020359,2]
[368592122,1751220632189,-170.54,0.00020377,2]
[368592123,1751220632199,-150.0,0.00020397,2]
[368592124,1751220632209,-301.82,0.00020421,2]
[368592125,1751220632493,-250.0,0.00020454,2]
[368592126,1751220632507,-503.0,0.00020466,2]
[368592127,1751220632516,-150.0,0.00020484,2]
[368592128,1751220632526,-300.0,0.00020496,2]
[368592129,1751220632536,-150.0,0.00020498,2]
[368592130,1751220632548,-200.0,0.0002052,7]
[368592131,1751220632558,-1167.47,0.00020589,2]
[368592132,1751220632569,-1167.47,0.00020589,2]
[368592133,1751220632578,-150.0,0.00020589,2]
[368592134,1751220632588,-363.23741113,0.00020632,2]
[368592135,1751220632598,-1045.0,0.00020639,2]
[368592136,1751220632608,-150.0,0.00020665,2]
[368592137,1751220632617,-1100.0,0.00020665,2]
[368592138,1751220632627,-1000.0,0.00020716,2]
[368592139,1751220632637,-150.0,0.00020735,2]
[368592140,1751220632648,-150.0,0.00020754,2]
[368592141,1751220632659,-1045.0,0.00020765,2]
[368592142,1751220632668,-166.4606439,0.00020773,2]
[368592143,1751220632677,-150.0,0.00020796,2]
[368592144,1751220632686,-151.0,0.00020807,2]
[368592145,1751220632696,-151.0,0.00020807,2]
[368592146,1751220632705,-151.0,0.00020807,2]
[368592147,1751220632715,-151.0,0.00020807,2]
[368592148,1751220632726,-151.0,0.00020807,2]
[368592149,1751220632735,-151.0,0.00020807,2]
[368592150,1751220632746,-151.0,0.00020807,2]
[368592151,1751220632756,-151.0,0.00020807,2]
[368592152,1751220632766,-151.0,0.00020807,2]
[368592153,1751220632776,-151.0,0.00020807,2]
[368592154,1751220632785,-151.0,0.00020807,2]
[368592155,1751220632794,-151.0,0.00020807,2]
[368592156,1751220632803,-151.0,0.00020807,2]
[368592157,1751220632813,-151.0,0.00020807,2]
[368592158,1751220632823,-151.0,0.00020807,2]
[368592159,1751220632832,-151.0,0.00020807,2]
[368592160,1751220632842,-151.0,0.00020807,2]
[368592161,1751220632852,-151.0,0.00020807,2]
[368592162,1751220632862,-151.0,0.00020807,2]
[368592163,1751220632871,-151.0,0.00020807,2]
[368592164,1751220632881,-1981.0,0.00020819,2]
[368592165,1751220632890,-150.0,0.00020826,2]
[368592166,1751220632899,-1000.0,0.00020849,2]
[368592167,1751220632909,-150.0,0.00020861,2]
[368592168,1751220632918,-300.57,0.00020873,2]
[368592169,1751220632928,-303.47,0.00020873,2]
[368592170,1751220632937,-305.07,0.00020873,2]
[368592171,1751220632947,-309.61333226,0.00020873,2]
[368592172,1751220632956,-150.0,0.00020874,2]
[368592173,1751220632966,-573.10529743,0.00020895,2]
[368592174,1751220632975,-150.0,0.00020918,2]
[368592175,1751220632984,-150.0,0.00020929,2]
[368592176,1751220632993,-207.4,0.00020939,2]
[368592177,1751220633003,-160.0,0.00020939,2]
[368592178,1751220633013,-300.0,0.00020939,2]
[368592179,1751220633022,-150.0,0.0002096,2]
[368592180,1751220633032,-185.45,0.00020986,2]
[368592181,1751220633042,-1343.58105014,0.00021,4]
[368592182,1751220633051,-7977.0,0.00021,2]
[368592183,1751220633061,-356.16,0.00021003,2]
[368592184,1751220633070,-276.05252959,0.0002105,2]
[368592188,1751220637722,-150.0,0.00020559,2]
[368592189,1751220637732,-4.71747041,0.0002105,2]
[368592190,1751220637742,-150.0,0.00021051,2]
[368592191,1751220637751,-133.22252959,0.00021072,4]
[368592192,1751220637880,-1210.3585205,0.00021072,4]
[368592194,1751220637890,-150.0,0.00021092,2]
[368592196,1751220637899,-3086.0,0.00021097,2]
[368592197,1751220637909,-150.0,0.00021149,2]
[368592198,1751220637918,-1981.0,0.00021151,2]
[368592199,1751220637928,-150.0,0.00021175,2]
[368592201,1751220637937,-355.6,0.00021178,2]
[368592203,1751220637948,-171.21,0.00021178,2]
[368592205,1751220637958,-912.5,0.00021178,2]
[368592207,1751220637967,-166.66,0.00021189,2]
[368592209,1751220637977,-150.0,0.00021205,2]
[368592211,1751220637987,-152.1197912,0.00021208,2]
[368592213,1751220637997,-150.0,0.00021209,2]
[368592215,1751220638006,-150.0,0.00021225,2]
[368592217,1751220638015,-150.0,0.00021236,2]
[368592219,1751220638024,-1343.58105009,0.00021245,4]
[368592221,1751220638034,-1000.0,0.00021262,2]
[368592223,1751220638043,-200.0,0.000213,7]
[368592225,1751220638053,-150.0,0.00021364,2]
[368592227,1751220638062,-500.0,0.000214,7]
[368592229,1751220638071,-150.0,0.00021411,2]
[368592231,1751220638081,-163.85,0.00021411,2]
[368592233,1751220638091,-456.25,0.00021411,2]
[368592235,1751220638100,-1343.58105009,0.00021417,5]
[368592237,1751220638109,-150.0,0.00021436,2]
[368592239,1751220638118,-150.0,0.0002146,2]
[368592241,1751220638127,-166.46064389,0.00021486,2]
[368592243,1751220638136,-700.0,0.000215,7]
[368592245,1751220638145,-5509.0,0.000215,3]
[368592247,1751220638155,-649.0400951,0.00021515,2]
[368592249,1751220638164,-150.0,0.00021556,2]
[368592251,1751220638173,-150.0,0.00021563,2]
[368592253,1751220638183,-150.0,0.00021577,2]
[368592255,1751220638192,-150.0,0.00021579,2]
[368592257,1751220638202,-7000.0,0.0002158,2]
[368592259,1751220638211,-150.0,0.00021583,2]
[368592261,1751220638220,-1343.58105009,0.0002159,5]
[368592263,1751220638229,-1000.0,0.000216,7]
[368592265,1751220638239,-150.0,0.00021613,2]
[368592267,1751220638248,-227.0,0.00021636,2]
[368592269,1751220638257,-513.0,0.00021647,10]
[368592271,1751220638266,-924.26,0.00021647,2]
[368592273,1751220638276,-1000.0,0.00021656,2]
[368592275,1751220638285,-5000.0,0.00021673,2]
[368592277,1751220638294,-163.97873339,0.00021673,2]
[368592279,1751220638303,-164.5289598,0.00021673,2]
[368592281,1751220638312,-2681.49942355,0.00021673,2]
[368592283,1751220638321,-798.87,0.00021678,2]
[368592285,1751220638331,-150.0,0.00021691,2]
[368592287,1751220638340,-355.6,0.00021699,2]
[368592289,1751220638349,-1200.0,0.000217,7]
[368592291,1751220638358,-150.0,0.0002171,2]
[368592294,1751220638369,-1000.0,0.00021717,2]
[368592295,1751220638378,-2681.49942353,0.00021719,2]
[368592297,1751220638387,-150.0,0.00021723,2]
[368592299,1751220638397,-150.0,0.00021727,2]
[368592301,1751220638407,-982.98795228,0.00021762,2]
[368592303,1751220638416,-1343.58105009,0.00021762,5]
[368592305,1751220638425,-150.0,0.00021764,2]
[368592307,1751220638435,-2681.49942353,0.00021766,2]
[368592309,1751220638444,-44747.28412756,0.00021772,3]
[368592311,1751220638454,-1075.54797462,0.00021773,2]
[368592313,1751220638464,-2020374.23223411,0.00021773,3]
[368592316,1751220638473,-502.20077747,0.00021773,2]
[368592318,1751220638483,-235000.31734109,0.00021773,2]
[368592320,1751220638492,-185.45,0.00021773,2]
[368592322,1751220638505,-519.698,0.00021799,3]
[368592324,1751220638515,-2500.0,0.000218,2]
[368592326,1751220638524,-200.0,0.000218,7]
[368592328,1751220638534,-18697.54111086,0.000218,2]
[368592330,1751220638543,-194.9397,0.000218,2]
[368592332,1751220638552,-174.61730059,0.000218,2]
[368592334,1751220638561,-2681.49942353,0.00021812,2]
[368592336,1751220638570,-150.15868772,0.00021816,2]
[368592338,1751220638581,-217.06446343,0.00021817,2]
[368592340,1751220638591,-189.246,0.00021817,2]
[368592342,1751220638600,-959.43,0.00021817,2]
[368592343,1751220638609,-17270.25882685,0.00021817,2]
[368592344,1751220638618,-528.40912717,0.00021817,2]
[368592345,1751220638627,-596.49210394,0.00021817,2]
[368592346,1751220638638,-3999.25643226,0.00021817,2]
[368592347,1751220638647,-150.0,0.00021855,2]
[368592348,1751220638656,-2681.49942353,0.00021859,2]
[368592349,1751220638665,-500.0,0.00021873,2]
[368592350,1751220638675,-500.0,0.00021873,2]
[368592351,1751220638683,-500.0,0.00021873,2]
[368592352,1751220638692,-536.83959098,0.00021873,2]
[368592353,1751220638702,-534.62262188,0.00021873,2]
[368592354,1751220638711,-440.16588761,0.00021873,2]
[368592355,1751220638721,-498.58718076,0.00021873,2]
[368592357,1751220638730,-1581.0,0.00021886,2]
[368592359,1751220638740,-163.97873334,0.00021889,2]
[368592361,1751220638749,-377.61,0.0002189,3]
[368592363,1751220638758,-150.0,0.00021895,2]
[368592365,1751220638767,-33760.9716583,0.00021897,2]
[368592367,1751220638776,-200.0,0.000219,7]
[368592369,1751220638786,-50000.0,0.000219,2]
[368592371,1751220638795,-30858.65913606,0.000219,2]
[368592373,1751220638804,-2681.49942353,0.00021905,2]
[368592375,1751220638813,-982.98795228,0.00021907,2]
[368592377,1751220638822,-6920.6378158,0.00021907,2]
[368592378,1751220638832,-150.0,0.00021913,2]
[368592380,1751220638841,-500.0,0.00021913,2]
[368592382,1751220638850,-150.0,0.00021913,2]
[368592384,1751220638859,-150.0,0.00021913,2]
[368592386,1751220638868,-500.0,0.00021913,2]
[368592388,1751220638877,-150.0,0.00021913,2]
[368592390,1751220638886,-150.0,0.00021913,2]
[368592392,1751220638895,-150.0,0.00021913,2]
[368592394,1751220638904,-151.00416533,0.00021913,2]
[368592396,1751220638913,-500.0,0.00021913,2]
[368592398,1751220638922,-150.0,0.00021913,2]
[368592400,1751220638931,-500.0,0.00021913,2]
[368592402,1751220638941,-150.0,0.00021913,2]
[368592404,1751220638950,-150.0,0.00021913,2]
[368592406,1751220638960,-500.0,0.00021913,2]
[368592408,1751220638969,-150.0,0.00021913,2]
[368592410,1751220638978,-500.0,0.00021913,2]
[368592412,1751220638987,-546.0,0.00021913,2]
[368592415,1751220638996,-150.91381745,0.00021913,2]
[368592417,1751220639006,-150.0,0.00021913,2]
[368592419,1751220639015,-150.0,0.00021913,2]
[368592421,1751220639024,-500.0,0.00021913,2]
[368592423,1751220639034,-500.0,0.00021913,2]
[368592425,1751220639043,-152.88570535,0.00021913,2]
[368592427,1751220639053,-204.82197656,0.00021913,2]
[368592429,1751220639062,-544.0,0.00021913,2]
[368592431,1751220639071,-150.0,0.00021913,2]
[368592432,1751220639080,-500.0,0.00021913,2]
[368592435,1751220639089,-500.0,0.00021913,2]
[368592437,1751220639099,-269.334,0.00021916,2]
[368592439,1751220639109,-166612.29447572,0.00021917,2]
[368592441,1751220639118,-596.26434,0.00021917,2]
[368592443,1751220639127,-292.491085,0.00021917,2]
[368592445,1751220639137,-154.654614,0.00021917,2]
[368592446,1751220639145,-154.654609,0.00021917,2]
[368592449,1751220639154,-1203.51,0.00021917,2]
[368592450,1751220639164,-490.0,0.00021917,2]
[368592452,1751220639173,-490.0,0.00021917,2]
[368592454,1751220639182,-609.62,0.00021917,2]
[368592456,1751220639191,-490.0,0.00021917,2]
[368592458,1751220639201,-490.0,0.00021917,2]
[368592460,1751220639210,-621.66,0.00021917,2]
[368592462,1751220639219,-922.19,0.00021917,2]
[368592465,1751220639229,-490.0,0.00021917,2]
[368592467,1751220639239,-490.0,0.00021917,2]
[368592469,1751220639248,-490.0,0.00021917,2]
[368592470,1751220639257,-490.0,0.00021917,2]
[368592472,1751220639266,-490.0,0.00021917,2]
[368592474,1751220639275,-490.0,0.00021917,2]
[368592476,1751220639284,-555.21,0.00021917,2]
[368592478,1751220639294,-973.91,0.00021917,2]
[368592480,1751220639303,-490.0,0.00021917,2]
[368592482,1751220639313,-490.0,0.00021917,2]
[368592484,1751220639322,-490.0,0.00021917,2]
[368592486,1751220639332,-1190.59,0.00021917,2]
[368592489,1751220639344,-490.0,0.00021917,2]
[368592491,1751220639353,-490.0,0.00021917,2]
[368592493,1751220639363,-490.0,0.00021917,2]
[368592495,1751220639373,-491.41566246,0.00021917,2]
[368592497,1751220639382,-490.0,0.00021917,2]
[368592499,1751220639392,-490.0,0.00021917,2]
[368592502,1751220639402,-490.0,0.00021917,2]
[368592504,1751220639411,-490.0,0.00021917,2]
[368592506,1751220639419,-977.53,0.00021917,2]
[368592508,1751220639429,-490.0,0.00021917,2]
[368592510,1751220639437,-1192.18,0.00021917,2]
[368592512,1751220639447,-490.0,0.00021917,2]
[368592514,1751220639456,-857.33,0.00021917,2]
[368592516,1751220639465,-490.0,0.00021917,2]
[368592518,1751220639476,-490.0,0.00021917,2]
[368592520,1751220639484,-490.0,0.00021917,2]
[368592522,1751220639494,-490.0,0.00021917,2]
[368592524,1751220639506,-490.0,0.00021917,2]
[368592526,1751220639516,-490.0,0.00021917,2]
[368592528,1751220639525,-490.0,0.00021917,2]
[368592530,1751220639535,-1328.3,0.00021917,2]
[368592532,1751220639545,-490.0,0.00021917,2]
[368592534,1751220639555,-268.60337895,0.00021917,2]
[368592536,1751220639564,-490.0,0.00021917,2]
[368592538,1751220639574,-490.0,0.00021917,2]
[368592540,1751220639585,-490.0,0.00021917,2]
[368592542,1751220639595,-464.19742774,0.00021917,2]
[368592544,1751220639605,-490.0,0.00021917,2]
[368592546,1751220639614,-490.0,0.00021917,2]
[368592548,1751220639623,-490.0,0.00021917,2]
[368592550,1751220639633,-490.0,0.00021917,2]
[368592552,1751220639642,-490.0,0.00021917,2]
[368592554,1751220639651,-831.34,0.00021917,2]
[368592556,1751220639660,-490.0,0.00021917,2]
[368592558,1751220639671,-490.0,0.00021917,2]
[368592560,1751220639679,-490.0,0.00021917,2]
[368592562,1751220639689,-490.0,0.00021917,2]
[368592564,1751220639698,-297.03649342,0.00021917,2]
[368592565,1751220639707,-490.0,0.00021917,2]
[368592567,1751220639716,-162.946885,0.00021917,2]
[368592569,1751220639726,-490.0,0.00021917,2]
[368592571,1751220639735,-490.0,0.00021917,2]
[368592573,1751220639744,-154.628687,0.00021917,2]
[368592575,1751220639753,-490.0,0.00021917,2]
[368592577,1751220639763,-162.617547,0.00021917,2]
[368592579,1751220639773,-151.0,0.00021917,2]
[368592581,1751220639782,-152.419746,0.00021917,2]
[368592583,1751220639791,-151.893054,0.00021917,2]
[368592585,1751220639801,-490.0,0.00021917,2]
[368592587,1751220639811,-569.87,0.00021917,2]
[368592589,1751220639820,-490.0,0.00021917,2]
[368592591,1751220639829,-490.43,0.00021917,2]
[368592594,1751220639839,-498.28040211,0.00021917,2]
[368592596,1751220639848,-420.0,0.00021917,2]
[368592597,1751220639858,-490.0,0.00021917,2]
[368592600,1751220639868,-154.53346,0.00021917,2]
[368592602,1751220639878,-490.0,0.00021917,2]
[368592604,1751220639887,-490.0,0.00021917,2]
[368592606,1751220639896,-151.0,0.00021917,2]
[368592607,1751220639906,-151.67367,0.00021917,2]
[368592609,1751220639915,-819.53,0.00021917,2]
[368592611,1751220639924,-476.55981003,0.00021917,2]
[368592614,1751220639934,-151.0,0.00021917,2]
[368592615,1751220639943,-151.0,0.00021917,2]
[368592617,1751220639953,-151.0,0.00021917,2]
[368592619,1751220639962,-158.954325,0.00021917,2]
[368592621,1751220639971,-490.0,0.00021917,2]
[368592623,1751220639981,-188.94661,0.00021917,2]
[368592626,1751220639991,-650.13,0.00021917,2]
[368592628,1751220640001,-156.432108,0.00021917,2]
[368592630,1751220640010,-525.68,0.00021917,2]
[368592632,1751220640019,-554.83690679,0.00021917,2]